bitfinex/quotes_SOLUSD_20240809
["timestamp","ask_amount","ask_price","bid_price","bid_amount"]
[1723202639279,27.34,156.84,156.82,0.12549]
[1723202639485,27.34,156.83,156.81,0.12549]
[1723202639672,6.3751,156.86,156.81,0.12549]
[1723202639984,27.34,156.84,156.81,0.12549]
[1723202641058,27.34,156.82,156.81,0.12549]
[1723202641279,28.93439553,156.82,156.81,0.12549]
[1723202641889,27.34,156.82,156.77,15.4477]
[1723202642591,27.34,156.82,156.73,49.33]
[1723202642592,27.34,156.79,156.73,49.33]
[1723202643766,27.34,156.79,156.74,0.37647]
[1723202643967,27.34,156.8,156.75,0.12549]
[1723202644281,27.34,156.8,156.75,0.25098]
[1723202646985,6.377,156.82,156.75,0.25098]
[1723202647187,27.34,156.8,156.75,0.25098]
[1723202647784,27.34,156.78,156.73,21.99]
[1723202647986,6.4345,156.86,156.73,15.3959]
[1723202647987,27.34,156.76,156.73,15.3959]
[1723202648373,28.9350497,156.76,156.73,15.3959]
[1723202648588,27.34,156.75,156.69,22.9730318]
[1723202649267,27.34,156.81,156.74,27.34]
[1723202649679,27.34,156.81,156.75,27.84196]
[1723202649883,27.34,156.81,156.75,0.50196]
[1723202650095,27.34,156.8,156.75,0.50196]
[1723202650475,27.34,156.8,156.75,0.12549]
[1723202650476,33.7175,156.8,156.75,0.12549]
[1723202650678,33.7175,156.8,156.74,0.50196]
[1723202651180,27.34,156.8,156.74,0.50196]
[1723202651391,27.34,156.8,156.74,27.84196]
[1723202651580,27.34,156.81,156.74,27.84196]
[1723202651890,27.34,156.81,156.74,0.25098]
[1723202651891,27.34,156.79,156.74,0.25098]
[1723202652088,27.34,156.79,156.72,27.34]
[1723202652089,27.34,156.79,156.75,0.12549]
[1723202652277,28.93489888,156.79,156.73,0.25098]
[1723202652794,27.34,156.79,156.73,0.25098]
[1723202653394,1.59485852,156.78,156.73,0.25098]
[1723202653589,27.34,156.79,156.73,0.25098]
[1723202653795,27.34,156.8,156.73,0.25098]
[1723202653975,27.34,156.8,156.73,27.59098]
[1723202654166,27.34,156.81,156.75,0.12549]
[1723202654567,27.34,156.81,156.75,0.25098]
[1723202654976,1.59472459,156.8,156.75,0.25098]
[1723202655783,33.7171,156.81,156.75,0.25098]
[1723202655982,27.34,156.81,156.75,0.25098]
[1723202656182,27.34,156.82,156.75,27.59098]
[1723202656388,27.34,156.81,156.75,0.25098]
[1723202656583,1.59466508,156.8,156.75,0.25098]
[1723202656798,28.93466508,156.8,156.75,0.25098]
[1723202657077,1.59467533,156.79,156.75,0.25098]
[1723202657998,27.34,156.8,156.75,0.25098]
[1723202658578,27.34,156.81,156.75,0.25098]
[1723202660081,27.34,156.8,156.75,0.25098]
[1723202660914,28.93469556,156.79,156.75,0.25098]
[1723202661094,1.59495365,156.78,156.75,0.25098]
[1723202662087,27.34,156.79,156.75,0.25098]
[1723202662295,27.34,156.8,156.75,0.12549]
[1723202662500,27.34,156.8,156.74,0.25098]
[1723202662703,35.31256484,156.8,156.74,0.12549]
[1723202662893,27.34,156.8,156.73,0.50196]
[1723202663204,27.34,156.8,156.73,27.84196]
[1723202663805,27.34,156.81,156.75,0.12549]
[1723202664010,27.34,156.78,156.75,0.25098]
[1723202664214,1.59497423,156.77,156.75,0.25098]
[1723202664418,1.59507158,156.76,156.75,0.25098]
[1723202664916,28.93507158,156.76,156.75,0.12549]
[1723202665292,27.34,156.76,156.75,0.12549]
[1723202665487,28.93510379,156.76,156.75,0.12549]
[1723202665719,27.34,156.78,156.75,0.12549]
[1723202666209,27.34,156.79,156.75,0.25098]
[1723202666418,27.34,156.8,156.75,0.12549]
[1723202667219,1.59474737,156.79,156.74,0.25098]
[1723202667386,27.34,156.8,156.74,0.25098]
[1723202668118,27.34,156.8,156.74,27.59098]
[1723202669200,27.34,156.8,156.74,0.25098]
[1723202669403,27.34,156.78,156.74,0.25098]
[1723202669611,27.34,156.79,156.75,0.12549]
[1723202669802,27.34,156.79,156.73,0.12549]
[1723202670698,27.34,156.8,156.73,27.71647]
[1723202670898,6.3767,156.82,156.73,27.71647]
[1723202670899,27.34,156.81,156.75,0.12549]
[1723202671207,27.34,156.81,156.75,0.50196]
[1723202671790,27.34,156.82,156.75,27.84196]
[1723202672196,27.34,156.81,156.75,0.50196]
[1723202672815,27.34,156.81,156.75,0.25098]
[1723202672816,27.34,156.8,156.75,0.25098]
[1723202673021,28.93483763,156.79,156.75,0.12549]
[1723202673394,27.34,156.8,156.75,0.12549]
[1723202673800,33.7176,156.8,156.75,0.12549]
[1723202675293,27.34,156.8,156.75,0.12549]
[1723202676098,28.93480679,156.8,156.75,0.12549]
[1723202677803,18.77,156.78,156.75,0.12549]
[1723202679733,6.3768,156.82,156.77,0.12549]
[1723202679907,18.77,156.79,156.77,0.25098]
[1723202680629,18.77,156.78,156.77,0.25098]
[1723202681411,1.59479649,156.8,156.77,0.25098]
[1723202681412,18.77,156.8,156.77,0.25098]
[1723202682524,18.77,156.79,156.77,0.25098]
[1723202683535,1.59469468,156.85,156.77,0.25098]
[1723202683536,13.10244345,156.86,156.77,0.25098]
[1723202683832,13.10244345,156.86,156.77,19.02098]
[1723202683833,18.77,156.81,156.77,19.02098]
[1723202684541,18.77,156.8,156.77,19.02098]
[1723202685416,6.3764,156.83,156.78,18.77]
[1723202685616,18.77,156.81,156.79,0.12549]
[1723202686112,20.0,156.85,156.78,0.12549]
[1723202686113,18.77,156.8,156.78,0.12549]
[1723202686315,18.77,156.79,156.77,0.25098]
[1723202687931,18.77,156.8,156.77,0.25098]
[1723202692236,18.77,156.78,156.76,15.8405]
[1723202692427,18.77,156.77,156.73,18.77]
[1723202692610,26.66845698,156.85,156.76,18.77]
[1723202692913,18.77,156.83,156.79,18.77]
[1723202693514,18.77,156.81,156.8,0.25098]
[1723202694228,18.77,156.81,156.8,0.12549]
[1723202694431,18.77,156.81,156.79,0.25098]
[1723202694629,6.376,156.84,156.79,19.02098]
[1723202694809,18.77,156.83,156.79,19.02098]
[1723202695636,18.77,156.82,156.79,19.02098]
[1723202697334,18.77,156.82,156.79,0.25098]
[1723202698144,18.77,156.81,156.79,0.25098]
[1723202698324,18.77,156.81,156.78,0.25098]
[1723202699140,18.77,156.81,156.77,18.77]
[1723202699322,18.77,156.8,156.76,25.0881]
[1723202700338,18.77,156.8,156.77,0.12549]
[1723202700639,18.77,156.8,156.77,0.25098]
[1723202701521,18.77,156.79,156.77,0.12549]
[1723202701744,18.77,156.79,156.72,22.7121]
[1723202701745,18.77,156.78,156.72,22.7121]
[1723202701940,18.77,156.77,156.73,18.77]
[1723202702236,6.377,156.82,156.76,18.77]
[1723202702440,18.77,156.8,156.76,18.77]
[1723202702661,18.77,156.79,156.75,18.77]
[1723202703244,18.77,156.79,156.76,0.12549]
[1723202703461,18.77,156.79,156.76,0.25098]
[1723202703641,18.77,156.77,156.72,16.2921]
[1723202703832,18.77,156.73,156.69,0.4420318]
[1723202704151,8.05805537,156.78,156.69,0.4420318]
[1723202704152,25.1516,156.7,156.69,0.4420318]
[1723202704332,70.1516,156.7,156.69,0.4420318]
[1723202704652,105.9785,156.7,156.59,15.9468]
[1723202704833,18.77,156.64,156.6,18.77]
[1723202705037,18.77,156.66,156.62,18.77]
[1723202705471,15.4214,156.73,156.65,18.77]
[1723202705629,18.77,156.71,156.68,0.12549]
[1723202705828,45.0,156.74,156.68,0.12549]
[1723202706055,27.4,156.73,156.68,0.12549]
[1723202706235,27.4,156.72,156.68,0.12549]
[1723202706563,27.4,156.72,156.67,0.25098]
[1723202706743,27.4,156.73,156.67,0.25098]
[1723202707050,27.4,156.71,156.67,0.25098]
[1723202707255,6.3804,156.73,156.67,0.25098]
[1723202707256,27.4,156.73,156.67,0.25098]
[1723202707451,27.4,156.73,156.67,27.65098]
[1723202707633,27.4,156.73,156.67,0.25098]
[1723202707835,27.4,156.74,156.67,27.65098]
[1723202708154,27.4,156.74,156.67,0.25098]
[1723202708340,27.4,156.74,156.68,27.4]
[1723202708648,27.4,156.74,156.69,0.25098]
[1723202709248,27.4,156.73,156.69,0.12549]
[1723202709450,27.4,156.73,156.68,0.25098]
[1723202710575,27.4,156.74,156.69,0.12549]
[1723202712068,27.4,156.76,156.69,27.77647]
[1723202712250,27.4,156.76,156.7,0.12549]
[1723202712453,27.4,156.76,156.71,0.12549]
[1723202712454,27.4,156.75,156.71,0.12549]
[1723202712863,2.51669016,156.81,156.73,0.12549]
[1723202713059,27.4,156.79,156.73,0.25098]
[1723202713279,33.7775,156.8,156.73,27.65098]
[1723202713460,27.4,156.8,156.73,27.65098]
[1723202713987,33.7788,156.77,156.73,0.25098]
[1723202714165,381.2,156.84,156.73,0.25098]
[1723202714166,35.37427452,156.76,156.73,0.25098]
[1723202714479,33.7792,156.76,156.73,0.25098]
[1723202714675,27.4,156.75,156.73,0.25098]
[1723202714880,28.99518327,156.75,156.73,0.25098]
[1723202715387,19.16899638,156.86,156.73,0.25098]
[1723202715388,27.4,156.78,156.73,0.25098]
[1723202715556,27.4,156.78,156.72,0.25098]
[1723202715881,1.5949902,156.82,156.72,0.25098]
[1723202715882,27.4,156.76,156.72,0.12549]
[1723202716048,1.59519807,156.75,156.72,0.12549]
[1723202716963,27.4,156.74,156.67,27.4]
[1723202717178,33.7812,156.71,156.66,16.5245]
[1723202717470,27.4,156.68,156.62,43.7205]
[1723202717676,27.4,156.68,156.62,16.3205]
[1723202717677,1.59596147,156.67,156.62,16.3205]
[1723202718065,27.4,156.66,156.62,16.3205]
[1723202718270,27.4,156.66,156.59,27.4]
[1723202718479,28.99627763,156.66,156.59,27.4]
[1723202718782,27.4,156.66,156.59,27.4]
[1723202719365,33.7836,156.65,156.59,0.12549]
[1723202719552,28.99627744,156.64,156.59,0.12549]
[1723202719753,27.4,156.63,156.58,15.7716]
[1723202720182,6.3836,156.65,156.58,15.7716]
[1723202720183,27.4,156.64,156.58,15.7716]
[1723202720388,27.4,156.63,156.58,15.7716]
[1723202720975,28.99653818,156.63,156.58,15.7716]
[1723202721561,27.4,156.63,156.59,0.12549]
[1723202721761,27.4,156.63,156.59,0.25098]
[1723202722192,27.4,156.65,156.59,0.25098]
[1723202723591,27.4,156.67,156.61,0.12549]
[1723202723779,27.4,156.67,156.61,0.25098]
[1723202724258,27.4,156.66,156.61,0.25098]
[1723202724685,27.4,156.66,156.62,0.12549]
[1723202724896,27.4,156.66,156.6,0.25098]
[1723202725189,27.4,156.65,156.6,0.25098]
[1723202725570,27.4,156.63,156.59,0.12549]
[1723202725783,28.99658385,156.62,156.59,0.12549]
[1723202725973,1.5966057,156.61,156.59,0.12549]
[1723202726182,1.59660487,156.6,156.59,0.12549]
[1723202726669,27.4,156.61,156.59,0.12549]
[1723202726875,27.4,156.62,156.59,0.12549]
[1723202727073,27.4,156.63,156.59,6.63698]
[1723202727594,27.4,156.62,156.59,6.63698]
[1723202728184,27.4,156.61,156.59,0.25098]
[1723202728362,27.4,156.61,156.59,0.12549]
[1723202728780,27.4,156.6,156.59,0.12549]
[1723202729092,28.99665715,156.6,156.59,0.12549]
[1723202729975,27.4,156.62,156.59,6.51129]
[1723202731972,27.4,156.61,156.59,6.51129]
[1723202732175,27.4,156.61,156.59,0.12549]
[1723202732477,1.5966837,156.6,156.59,0.25098]
[1723202732781,27.4,156.61,156.59,0.25098]
[1723202733296,10.00552374,156.68,156.6,0.12549]
[1723202733492,27.4,156.66,156.6,27.77647]
[1723202733798,27.4,156.65,156.61,0.12549]
[1723202734378,27.4,156.64,156.6,0.25098]
[1723202734595,27.4,156.64,156.6,0.12549]
[1723202734793,28.9962866,156.64,156.6,0.12549]
[1723202734981,28.9962866,156.64,156.59,0.25098]
[1723202735377,27.4,156.62,156.59,0.12549]
[1723202735777,27.4,156.63,156.59,0.12549]
[1723202735980,27.4,156.64,156.58,27.65098]
[1723202736792,27.4,156.64,156.59,0.12549]
[1723202739085,27.4,156.63,156.59,0.12549]
[1723202740474,27.4,156.62,156.59,0.12549]
[1723202740676,27.4,156.62,156.58,0.25098]
[1723202741075,28.99655572,156.62,156.58,0.25098]
[1723202741391,27.4,156.63,156.58,0.25098]
[1723202741608,27.4,156.64,156.58,0.25098]
[1723202741974,27.4,156.63,156.58,0.25098]
[1723202748005,33.7837,156.65,156.58,27.65098]
[1723202748410,33.7833,156.66,156.6,0.12549]
[1723202748602,33.7833,156.66,156.6,0.25098]
[1723202748802,33.7833,156.66,156.6,27.65098]
[1723202749189,27.4,156.66,156.6,27.65098]
[1723202749513,33.7832,156.66,156.6,27.65098]
[1723202749803,33.7832,156.66,156.6,0.25098]
[1723202750806,27.4,156.65,156.6,0.25098]
[1723202751114,35.38057392,156.64,156.6,0.12549]
[1723202751290,33.7843,156.64,156.6,0.12549]
[1723202751490,1.596508,156.63,156.58,0.12549]
[1723202751688,33.7849,156.62,156.55,27.4]
[1723202751883,33.7849,156.62,156.56,27.4]
[1723202752294,6.3849,156.62,156.56,27.4]
[1723202752788,6.3849,156.62,156.58,6.3864]
[1723202752990,6.3849,156.62,156.59,0.12549]
[1723202753518,7.98208952,156.61,156.55,27.4]
[1723202753708,1.59675414,156.6,156.56,6.3869]
[1723202754009,1.59675414,156.6,156.57,6.3868]
[1723202754211,1.59675414,156.6,156.56,6.3872]
[1723202754212,35.38232919,156.6,156.56,6.3872]
[1723202754418,33.7856,156.6,156.56,6.3872]
[1723202754719,33.785,156.62,156.57,6.3868]
[1723202755295,33.785,156.62,156.55,27.4]
[1723202755296,6.3856,156.61,156.56,6.3871]
[1723202755703,33.7849,156.62,156.57,6.3868]
[1723202756095,33.7845,156.63,156.58,6.3863]
[1723202756421,33.7837,156.65,156.61,6.3849]
[1723202757091,33.7837,156.65,156.62,0.12549]
[1723202757313,33.7833,156.66,156.62,0.25098]
[1723202757692,7.97992594,156.65,156.62,0.25098]
[1723202757897,6.3836,156.65,156.62,0.25098]
[1723202758495,33.7836,156.65,156.62,0.25098]
[1723202758915,27.4,156.65,156.62,0.25098]
[1723202760517,27.4,156.66,156.62,0.25098]
[1723202761018,1.59615987,156.65,156.62,0.25098]
[1723202761319,1.5962881,156.64,156.62,0.25098]
[1723202761505,1.5962881,156.64,156.61,0.25098]
[1723202761707,18.8,156.64,156.62,0.12549]
[1723202761907,18.8,156.64,156.62,0.25098]
[1723202763303,18.8,156.65,156.62,0.25098]
[1723202763822,18.8,156.64,156.62,0.25098]
[1723202764531,6.67506155,156.69,156.64,0.12549]
[1723202764820,18.8,156.73,156.69,0.12549]
[1723202765032,6.5592,156.77,156.71,18.92549]
[1723202765204,18.8,156.76,156.73,0.12549]
[1723202765403,6.3951,156.82,156.73,0.12549]
[1723202765601,18.8,156.8,156.77,0.12549]
[1723202765802,27.37,156.81,156.77,0.25098]
[1723202766001,27.37,156.8,156.77,0.25098]
[1723202766217,6.3779,156.79,156.77,0.25098]
[1723202766531,7.97270457,156.79,156.77,0.25098]
[1723202766728,6.3779,156.79,156.77,0.25098]
[1723202768308,33.7479,156.79,156.77,0.25098]
[1723202768507,33.7475,156.8,156.77,0.25098]
[1723202768717,6.3775,156.8,156.77,0.25098]
[1723202770303,28.96484141,156.79,156.77,0.12549]
[1723202770503,28.96484141,156.79,156.73,27.49549]
[1723202770504,27.37,156.79,156.73,27.49549]
[1723202770703,33.748,156.79,156.74,0.12549]
[1723202770922,27.37,156.78,156.74,0.12549]
[1723202771121,27.37,156.78,156.73,0.25098]
[1723202771634,27.37,156.78,156.73,0.12549]
[1723202771635,33.7483,156.78,156.73,0.12549]
[1723202771811,27.37,156.78,156.72,27.74647]
[1723202772206,27.37,156.78,156.72,27.62098]
[1723202772207,33.7483,156.78,156.72,27.62098]
[1723202772410,27.37,156.74,156.68,23.1595]
[1723202772614,27.37,156.8,156.68,16.5582]
[1723202772615,27.37,156.72,156.68,16.5582]
[1723202772839,27.37,156.71,156.64,33.6579]
[1723202773137,27.37,156.69,156.64,6.2879]
[1723202773439,27.37,156.67,156.63,15.7136]
[1723202773741,27.37,156.69,156.62,27.37]
[1723202774039,27.37,156.68,156.61,27.37]
[1723202774406,27.37,156.69,156.62,27.37]
[1723202775040,33.7516,156.7,156.63,27.37]
[1723202775206,7.97779141,156.69,156.64,0.12549]
[1723202775405,27.37,156.7,156.64,0.12549]
[1723202775629,27.37,156.69,156.63,0.25098]
[1723202775937,27.37,156.69,156.63,0.37647]
[1723202776140,1.59590004,156.74,156.64,0.12549]
[1723202776141,27.37,156.7,156.64,0.12549]
[1723202776306,33.752,156.69,156.64,0.12549]
[1723202776509,33.7525,156.68,156.63,0.37647]
[1723202776815,33.7525,156.68,156.63,0.25098]
[1723202777039,27.37,156.68,156.63,0.12549]
[1723202777223,27.37,156.68,156.64,0.12549]
[1723202777416,27.37,156.68,156.63,0.12549]
[1723202778037,33.7524,156.68,156.63,0.12549]
[1723202778415,27.37,156.68,156.63,0.12549]
[1723202779134,33.7524,156.68,156.63,0.12549]
[1723202779747,27.37,156.68,156.63,0.12549]
[1723202780050,27.37,156.67,156.63,0.12549]
[1723202780934,6.3828,156.67,156.63,0.12549]
[1723202781110,33.7525,156.68,156.63,0.12549]
[1723202782059,33.754,156.64,156.59,16.0051]
[1723202782334,6.6185,156.71,156.6,27.37]
[1723202782335,33.7535,156.66,156.6,27.37]
[1723202783721,27.37,156.65,156.6,0.12549]
[1723202783921,33.7536,156.65,156.6,0.25098]
[1723202784353,6.3836,156.65,156.6,0.25098]
[1723202784730,6.3836,156.65,156.6,27.62098]
[1723202784931,27.37,156.64,156.6,0.25098]
[1723202785129,33.7536,156.65,156.6,0.25098]
[1723202785442,33.7533,156.66,156.6,0.25098]
[1723202785750,33.7529,156.67,156.62,0.12549]
[1723202785954,27.37,156.68,156.62,27.62098]
[1723202786253,27.37,156.7,156.64,0.12549]
[1723202786464,27.37,156.68,156.64,0.12549]
[1723202786632,28.96615113,156.67,156.62,0.12549]
[1723202786832,27.37,156.65,156.61,0.12549]
[1723202787142,1.59635321,156.64,156.6,0.25098]
[1723202787343,7.98055321,156.64,156.6,0.25098]
[1723202787543,1.59635321,156.64,156.6,0.25098]
[1723202789148,33.7532,156.66,156.6,0.25098]
[1723202790052,7.97993219,156.65,156.6,0.25098]
[1723202790243,33.7532,156.66,156.6,0.25098]
[1723202790427,6.3832,156.66,156.6,27.62098]
[1723202791835,27.37,156.67,156.6,27.62098]
[1723202792052,6.3845,156.63,156.57,27.37]
[1723202792236,27.37,156.6,156.55,15.3826]
[1723202792444,27.37,156.6,156.5,10.00393126]
[1723202792445,6.3877,156.55,156.51,27.37]
[1723202792654,27.37,156.57,156.5,42.7634]
[1723202792655,1.59723167,156.54,156.5,42.7634]
[1723202792856,27.37,156.57,156.5,42.7634]
[1723202793038,27.37,156.59,156.52,27.37]
[1723202793372,6.3862,156.59,156.53,28.1904782]
[1723202793547,33.7557,156.6,156.53,28.1904782]
[1723202793747,65.0,156.59,156.54,6.3877]
[1723202794755,98.7562,156.59,156.55,0.12549]
[1723202794955,98.7562,156.59,156.54,0.25098]
[1723202795330,27.37,156.55,156.53,0.8204782]
[1723202795638,35.3557627,156.54,156.53,0.8204782]
[1723202795844,55.3557627,156.54,156.53,0.8204782]
[1723202796047,100.3557627,156.54,156.53,0.8204782]
[1723202796441,47.37,156.54,156.53,0.8204782]
[1723202796653,55.3555767,156.54,156.53,0.8204782]
[1723202797358,98.7581,156.54,156.53,0.8204782]
[1723202797565,100.35584447,156.54,156.53,0.8204782]
[1723202797742,113.64632017,156.54,156.53,0.8204782]
[1723202798260,6.3904,156.49,156.44,6.3918]
[1723202798765,33.7604,156.49,156.44,6.3918]
[1723202799264,27.37,156.49,156.45,6.3917]
[1723202799463,27.37,156.5,156.43,27.37]
[1723202799940,27.37,156.49,156.42,42.4267]
[1723202800144,27.37,156.43,156.38,0.8204782]
[1723202800340,6.3932,156.42,156.38,0.8204782]
[1723202800641,20.0,156.43,156.38,0.8204782]
[1723202800857,1.5988307,156.42,156.38,0.8204782]
[1723202801059,65.0,156.43,156.38,0.8204782]
[1723202801246,92.37,156.43,156.38,0.8204782]
[1723202801965,27.37,156.41,156.38,0.8204782]
[1723202802139,73.96892728,156.4,156.38,0.8204782]
[1723202802338,35.36320896,156.39,156.38,0.8204782]
[1723202802538,106.97490896,156.39,156.38,0.8204782]
[1723202802740,107.22588896,156.39,156.38,0.8204782]
[1723202803053,6.3955,156.36,156.29,15.5232]
[1723202803246,27.37,156.34,156.29,15.5232]
[1723202803571,28.46168896,156.39,156.29,15.5232]
[1723202803572,27.37,156.37,156.3,33.7676]
[1723202803751,45.0,156.36,156.3,27.37]
[1723202804062,72.37,156.36,156.29,42.8932]
[1723202804562,27.37,156.36,156.3,6.3978]
[1723202804773,27.37,156.38,156.33,6.3966]
[1723202805063,27.37,156.41,156.35,27.37]
[1723202805267,27.37,156.41,156.34,27.37]
[1723202805466,27.37,156.4,156.35,6.3956]
[1723202805651,1.59890567,156.39,156.36,0.12549]
[1723202805857,27.37,156.37,156.3,0.12549]
[1723202806042,27.37,156.37,156.31,6.3974]
[1723202806245,6.3943,156.39,156.32,6.397]
[1723202806468,6.3943,156.39,156.29,42.8932]
[1723202806469,27.37,156.35,156.3,6.3978]
[1723202807151,27.37,156.36,156.29,42.8932]
[1723202807467,72.37,156.4,156.31,27.37]
[1723202807468,27.37,156.37,156.31,27.37]
[1723202807668,27.37,156.37,156.3,27.37]
[1723202807861,72.37,156.36,156.31,0.12549]
[1723202808059,27.37,156.35,156.3,0.12549]
[1723202808367,27.37,156.35,156.3,6.52309]
[1723202808571,27.37,156.35,156.3,0.12549]
[1723202809145,27.37,156.36,156.31,0.12549]
[1723202809341,6.3953,156.37,156.3,0.25098]
[1723202809542,27.37,156.35,156.3,6.64888]
[1723202809771,27.37,156.34,156.3,0.12549]
[1723202809944,27.37,156.31,156.27,6.3991]
[1723202810148,27.37,156.31,156.25,16.1315]
[1723202810149,27.37,156.29,156.25,16.1315]
[1723202810490,15.9881,156.37,156.22,15.41419274]
[1723202810491,27.37,156.26,156.22,15.41419274]
[1723202810779,28.97031367,156.25,156.22,15.30859274]
[1723202811081,27.37,156.27,156.23,6.4007]
[1723202811242,28.97023193,156.26,156.22,15.30849274]
[1723202811440,28.97023193,156.26,156.23,6.4008]
[1723202811668,6.3963,156.34,156.25,27.37]
[1723202811842,20.0,156.33,156.3,6.3978]
[1723202812047,20.0,156.33,156.28,27.37]
[1723202812273,6.3972,156.32,156.25,6.3997]
[1723202812478,6.3972,156.32,156.26,0.12549]
[1723202812771,1.599855,156.31,156.26,6.65048]
[1723202813145,1.599855,156.31,156.22,8.90739274]
[1723202813146,27.37,156.3,156.25,6.3998]
[1723202813351,27.37,156.27,156.23,6.4006]
[1723202813669,27.37,156.26,156.22,15.30839274]
[1723202813880,1.60027804,156.27,156.22,15.30839274]
[1723202813881,27.37,156.27,156.22,15.30839274]
[1723202814085,27.37,156.25,156.22,8.90739274]
[1723202814244,27.37,156.23,156.22,8.90739274]
[1723202814668,72.37,156.23,156.22,8.90739274]
[1723202814892,27.37,156.23,156.22,8.90739274]
[1723202815180,0.25098,156.27,156.22,8.90739274]
[1723202815181,27.37,156.26,156.22,8.90739274]
[1723202815367,72.37,156.25,156.22,8.90739274]
[1723202815577,27.37,156.25,156.22,8.90739274]
[1723202815754,45.0,156.24,156.22,8.90739274]
[1723202815958,35.45,156.24,156.22,8.90739274]
[1723202816269,35.45,156.26,156.22,8.90739274]
[1723202816580,45.0,156.25,156.22,8.90739274]
[1723202816790,6.4008,156.23,156.22,8.90739274]
[1723202816982,51.4008,156.23,156.22,8.90739274]
[1723202817177,45.0,156.23,156.22,8.90739274]
[1723202817472,73.00165287,156.23,156.22,8.90739274]
[1723202817655,73.25263287,156.23,156.22,8.90739274]
[1723202818058,71.65178,156.23,156.22,8.90739274]
[1723202818257,71.4008,156.23,156.22,8.90739274]
[1723202818757,45.0,156.23,156.22,8.90739274]
[1723202819174,71.4008,156.23,156.22,8.90739274]
[1723202819671,65.0,156.23,156.22,8.90739274]
[1723202819857,20.0,156.23,156.22,8.90739274]
[1723202820057,41.4518,156.28,156.22,8.90739274]
[1723202820296,6.1218,156.32,156.23,0.12549]
[1723202820586,35.45,156.32,156.23,0.12549]
[1723202820765,35.45,156.28,156.22,24.97049274]
[1723202820969,6.3996,156.26,156.22,8.90739274]
[1723202821155,35.45,156.24,156.22,8.90739274]
[1723202821359,35.45,156.26,156.22,8.90739274]
[1723202821793,6.3991,156.28,156.22,15.30859274]
[1723202822000,20.0,156.27,156.23,0.12549]
[1723202822500,6.3996,156.26,156.23,0.12549]
[1723202822809,6.3996,156.26,156.22,8.90739274]
[1723202822979,26.3993,156.27,156.22,8.90739274]
[1723202823787,41.8508,156.23,156.22,8.90739274]
[1723202823985,108.45152271,156.23,156.22,8.90739274]
[1723202824305,71.65178,156.23,156.22,8.90739274]
[1723202826309,65.25098,156.23,156.14,6.4042]
[1723202826611,65.25098,156.23,156.09,22.5338]
[1723202826612,41.8533,156.17,156.09,22.5338]
[1723202826775,8.00513537,156.16,156.09,22.5338]
[1723202826979,35.45,156.15,156.1,6.4057]
[1723202827175,41.8541,156.15,156.09,22.7105]
[1723202827378,41.8536,156.17,156.09,16.304]
[1723202827603,6.4036,156.17,156.09,16.304]
[1723202827994,41.8524,156.19,156.13,6.4048]
[1723202828199,20.0,156.18,156.1,35.45]
[1723202828515,6.404,156.16,156.1,6.53119]
[1723202828681,35.45,156.17,156.1,0.12549]
[1723202828682,6.4049,156.13,156.1,0.12549]